fUST/lending_fUST_20250307
["ID","MTS","AMOUNT","RATE_DAILY","PERIOD"]
[355596719,1741356642310,-349.0,0.00025499,2]
[355596720,1741356642319,-349.0,0.00025499,2]
[355596721,1741356642328,-349.0,0.00025499,2]
[355596722,1741356642338,-349.0,0.00025499,2]
[355596723,1741356642347,-349.0,0.00025499,2]
[355596724,1741356642357,-349.0,0.00025499,2]
[355596725,1741356642366,-349.0,0.00025499,2]
[355596726,1741356642376,-349.0,0.00025499,2]
[355596727,1741356642386,-349.0,0.00025499,2]
[355596728,1741356642395,-349.0,0.00025499,2]
[355596729,1741356642404,-349.0,0.00025499,2]
[355596730,1741356642414,-349.0,0.00025499,2]
[355596731,1741356642424,-349.0,0.00025499,2]
[355596732,1741356642434,-349.0,0.00025499,2]
[355596733,1741356642443,-349.0,0.00025499,2]
[355596734,1741356642452,-349.0,0.00025499,2]
[355596735,1741356642462,-349.0,0.00025499,2]
[355596736,1741356642471,-349.0,0.00025499,2]
[355596737,1741356642480,-349.0,0.00025499,2]
[355596738,1741356642489,-349.0,0.00025499,2]
[355596739,1741356642501,-349.0,0.00025499,2]
[355596740,1741356642510,-349.0,0.00025499,2]
[355596741,1741356642520,-349.0,0.00025499,2]
[355596742,1741356642530,-349.0,0.00025499,2]
[355596743,1741356642539,-349.0,0.00025499,2]
[355596744,1741356642548,-349.0,0.00025499,2]
[355596745,1741356642558,-349.0,0.00025499,2]
[355596746,1741356642567,-349.0,0.00025499,2]
[355596747,1741356642576,-349.0,0.00025499,2]
[355596748,1741356642585,-349.0,0.00025499,2]
[355596749,1741356642595,-349.0,0.00025499,2]
[355596750,1741356642604,-349.0,0.00025499,2]
[355596751,1741356642613,-349.0,0.00025499,2]
[355596752,1741356642622,-349.0,0.00025499,2]
[355596753,1741356642635,-349.0,0.00025499,2]
[355596754,1741356642644,-349.0,0.00025499,2]
[355596755,1741356642654,-349.0,0.00025499,2]
[355596756,1741356642663,-349.0,0.00025499,2]
[355596757,1741356642672,-349.0,0.00025499,2]
[355596758,1741356642682,-349.0,0.00025499,2]
[355596759,1741356642691,-349.0,0.00025499,2]
[355596760,1741356642700,-349.0,0.00025499,2]
[355596761,1741356642709,-349.0,0.00025499,2]
[355596762,1741356642718,-349.0,0.00025499,2]
[355596763,1741356642727,-349.0,0.00025499,2]
[355596764,1741356642736,-349.0,0.00025499,2]
[355596765,1741356642749,-349.0,0.00025499,2]
[355596766,1741356642759,-349.0,0.00025499,2]
[355596767,1741356642768,-349.0,0.00025499,2]
[355596768,1741356642777,-349.0,0.00025499,2]
[355596769,1741356642786,-349.0,0.00025499,2]
[355596770,1741356642797,-349.0,0.00025499,2]
[355596771,1741356642807,-349.0,0.00025499,2]
[355596772,1741356642818,-349.0,0.00025499,2]
[355596773,1741356642831,-349.0,0.00025499,2]
[355596774,1741356642841,-349.0,0.00025499,2]
[355596775,1741356642851,-349.0,0.00025499,2]
[355596776,1741356642860,-349.0,0.00025499,2]
[355596777,1741356642869,-349.0,0.00025499,2]
[355596778,1741356642878,-349.0,0.00025499,2]
[355596779,1741356642888,-5000.0,0.00025633,2]
[355596780,1741356642898,-2000.0,0.00025714,4]
[355596781,1741356642907,-156.857475,0.0002585,4]
[355596782,1741356642916,-14645.69421574,0.00026,10]
[355596783,1741356642926,-514.2539251,0.00026,2]
[355596784,1741356642936,-19900.0,0.00026,2]
[355596785,1741356642945,-419.85637306,0.00026,2]
[355596786,1741356642955,-405.35,0.00026027,2]
[355596787,1741356642964,-500.0,0.00026028,2]
[355596788,1741356642974,-300.0,0.000268,12]
[355596789,1741356642983,-3588.67778877,0.00026849,2]
[355596790,1741356642993,-156.857475,0.00026904,2]
[355596792,1741356643002,-1008.14309323,0.00027,2]
[355596793,1741356643012,-131174.7082,0.00027,2]
[355596794,1741356643021,-1523.51339792,0.00027,2]
[355596795,1741356643031,-337.49876997,0.00027,2]
[355596796,1741356643041,-180.0,0.00027,4]
[355596797,1741356643050,-561.0,0.00027,2]
[355596798,1741356643060,-19334.66611773,0.00027123,2]
[355596799,1741356643070,-2000.0,0.00027143,4]
[355596800,1741356643079,-1000.0,0.000272,5]
[355596801,1741356643089,-500.0,0.00027373,2]
[355596802,1741356643098,-405.35,0.00027397,2]
[355596803,1741356643108,-500.0,0.00027397,2]
[355596804,1741356643118,-1605.08148193,0.00027397,2]
[355596805,1741356643129,-1605.08148193,0.00027397,2]
[355596806,1741356643138,-1605.08148193,0.00027397,2]
[355596807,1741356643148,-1605.08148193,0.00027397,2]
[355596808,1741356643158,-1605.08148193,0.00027397,2]
[355596809,1741356643167,-1605.08148193,0.00027397,2]
[355596810,1741356643178,-1605.08148193,0.00027397,2]
[355596811,1741356643187,-1605.08148193,0.00027397,2]
[355596812,1741356643198,-1605.08148193,0.00027397,2]
[355596813,1741356643208,-1605.08148193,0.00027397,2]
[355596814,1741356643217,-1605.08148193,0.00027397,2]
[355596815,1741356643227,-1605.08148193,0.00027397,2]
[355596816,1741356643236,-1605.08148193,0.00027397,2]
[355596817,1741356643248,-1605.08148193,0.00027397,2]
[355596818,1741356643258,-1605.08148193,0.00027397,2]
[355596820,1741356643268,-1605.08148193,0.00027397,2]
[355596822,1741356643278,-1605.08148193,0.00027397,2]
[355596824,1741356643287,-1605.08148193,0.00027397,2]
[355596825,1741356643297,-1605.08148193,0.00027397,2]
[355596826,1741356643307,-1605.08148193,0.00027397,2]
[355596827,1741356643317,-1605.08148193,0.00027397,2]
[355596828,1741356643326,-1605.08148193,0.00027397,2]
[355596829,1741356643336,-1605.08148193,0.00027397,2]
[355596830,1741356643347,-1605.08148193,0.00027397,2]
[355596831,1741356643356,-1605.08148193,0.00027397,2]
[355596832,1741356643366,-1605.08148193,0.00027397,2]
[355596833,1741356643376,-1605.08148193,0.00027397,2]
[355596834,1741356643386,-1605.08148193,0.00027397,2]
[355596835,1741356643395,-1605.08148193,0.00027397,2]
[355596836,1741356643405,-1605.08148193,0.00027397,2]
[355596837,1741356643415,-1605.08148193,0.00027397,2]
[355596838,1741356643425,-1605.08148193,0.00027397,2]
[355596839,1741356643435,-1605.08148193,0.00027397,2]
[355596840,1741356643445,-1605.08148193,0.00027397,2]
[355596841,1741356643455,-1605.08148193,0.00027397,2]
[355596843,1741356643464,-1605.08148193,0.00027397,2]
[355596845,1741356643475,-1605.08148193,0.00027397,2]
[355596846,1741356643484,-1605.08148193,0.00027397,2]
[355596847,1741356643496,-1605.08148193,0.00027397,2]
[355596848,1741356643505,-1605.08148193,0.00027397,2]
[355596849,1741356643515,-1605.08148193,0.00027397,2]
[355596850,1741356643524,-1605.08148193,0.00027397,2]
[355596851,1741356643534,-1605.08148193,0.00027397,2]
[355596852,1741356643544,-1605.08148193,0.00027397,2]
[355596853,1741356643564,-1605.08148193,0.00027397,2]
[355596854,1741356643578,-1605.08148193,0.00027397,2]
[355596855,1741356643588,-1605.08148193,0.00027397,2]
[355596856,1741356643597,-1605.08148193,0.00027397,2]
[355596857,1741356643607,-1605.08148193,0.00027397,2]
[355596858,1741356643616,-1605.08148193,0.00027397,2]
[355596859,1741356643626,-1605.08148193,0.00027397,2]
[355596860,1741356643636,-1605.08148193,0.00027397,2]
[355596861,1741356643645,-1605.08148193,0.00027397,2]
[355596862,1741356643655,-1605.08148193,0.00027397,2]
[355596863,1741356643664,-1605.08148193,0.00027397,2]
[355596864,1741356643673,-1605.08148193,0.00027397,2]
[355596865,1741356643683,-1605.08148193,0.00027397,2]
[355596866,1741356643693,-202.3762556,0.00027397,5]
[355596867,1741356643702,-150.0,0.00027397,3]
[355596868,1741356643711,-500.0,0.00027398,2]
[355596869,1741356643721,-500.0,0.00027424,2]
[355596870,1741356643730,-500.0,0.00027452,2]
[355596871,1741356643739,-500.0,0.00027479,2]
[355596872,1741356643752,-4971.18007459,0.000275,2]
[355596873,1741356643764,-938.62583226,0.00027507,2]
[355596874,1741356643774,-561.0,0.00027574,2]
[355596875,1741356643784,-1613.0,0.00027797,2]
[355596876,1741356643795,-403.76098153,0.00027921,5]
[355596877,1741356643805,-250.0,0.00027945,3]
[355596878,1741356643814,-16693.68770107,0.0002799,2]
[355596879,1741356643824,-250.0,0.00028,5]
[355596880,1741356643834,-1949.2724748,0.00028,120]
[355596881,1741356643843,-300.0,0.000283,13]
[355596882,1741356643852,-350.0,0.00028493,3]
[355596883,1741356643862,-656.94358869,0.00028571,4]
[355596884,1741356643871,-561.0,0.00028665,2]
[355596885,1741356643881,-405.35,0.00028767,2]
[355596886,1741356643890,-500.0,0.00028768,2]
[355596887,1741356643900,-965.14700998,0.000289,2]
[355596888,1741356643910,-867.09397726,0.00029,2]
[355596889,1741356643919,-450.0,0.00029041,3]
[355596890,1741356643931,-550.0,0.00029589,3]
[355596891,1741356643945,-300.0,0.000298,14]
[355596892,1741356643957,-216.52185366,0.0003,5]
[355596893,1741356643970,-206.47206513,0.0003,2]
[355596894,1741356643985,-1053.78968161,0.0003,2]
[355596895,1741356643999,-3151.78,0.0003,30]
[355596896,1741356644009,-1060.0,0.0003,30]
[355596897,1741356644023,-503.78756071,0.0003,7]
[355596898,1741356644035,-1209.46039926,0.0003,7]
[355596899,1741356644047,-168.0,0.0003,2]
[355596900,1741356644059,-561.0,0.00030098,2]
[355596901,1741356644072,-405.35,0.00030136,2]
[355596902,1741356644086,-650.0,0.00030137,3]
[355596903,1741356644097,-500.0,0.00030137,2]
[355596904,1741356644109,-2258.0,0.0003033,2]
[355596905,1741356644122,-750.0,0.00030685,3]
[355596906,1741356644135,-299.66337001,0.0003099,2]
[355596907,1741356644146,-198.0,0.00031,120]
[355596908,1741356644159,-10762.52913419,0.000312,2]
[355596909,1741356644171,-850.0,0.00031233,3]
[355596910,1741356644184,-9531.59033692,0.00031254,2]
[355596911,1741356644195,-300.0,0.000313,15]
[355596912,1741356644207,-405.35,0.00031506,2]
[355596913,1741356644219,-500.0,0.00031507,2]
[355596914,1741356644232,-500.0,0.0003154,6]
[355596915,1741356644245,-500.0,0.0003154,6]
[355596916,1741356644257,-500.0,0.00031677,6]
[355596917,1741356644268,-500.0,0.00031677,6]
[355596918,1741356644278,-950.0,0.00031781,3]
[355596919,1741356644288,-500.0,0.00031814,6]
[355596920,1741356644300,-500.0,0.00031814,6]
[355596921,1741356644311,-500.0,0.00031951,6]
[355596922,1741356644323,-500.0,0.00031951,6]
[355596923,1741356644336,-200.0,0.00032,7]
[355596924,1741356644347,-360.28725388,0.00032,2]
[355596925,1741356644360,-500.0,0.00032088,6]
[355596926,1741356644372,-500.0,0.00032088,6]
[355596928,1741356644383,-561.0,0.00032105,2]
[355596929,1741356644397,-160.0,0.00032148,2]
[355596931,1741356644408,-160.0,0.00032148,2]
[355596932,1741356644421,-500.0,0.00032225,6]
[355596933,1741356644435,-500.0,0.00032225,6]
[355596934,1741356644446,-6891.01344349,0.0003224,2]
[355596935,1741356644457,-1050.0,0.00032329,3]
[355596936,1741356644467,-500.0,0.00032362,6]
[355596937,1741356644478,-500.0,0.00032362,6]
[355596938,1741356644489,-320.0833592,0.00032464,35]
[355596939,1741356644502,-500.0,0.00032499,6]
[355596940,1741356644513,-500.0,0.00032499,6]
[355596941,1741356644527,-208.81456216,0.000325,30]
[355596942,1741356644539,-500.0,0.00032636,6]
[355596943,1741356644550,-500.0,0.00032636,6]
[355596944,1741356644559,-500.0,0.00032773,6]
[355596945,1741356644570,-500.0,0.00032773,6]
[355596946,1741356644581,-300.0,0.000328,16]
[355596947,1741356644604,-405.35,0.00032876,2]
[355596948,1741356644621,-151.0,0.00032877,14]
[355596949,1741356644638,-151.0,0.00032877,14]
[355596950,1741356644650,-173.29968,0.00032877,14]
[355596951,1741356644667,-325.65199856,0.00032877,3]
[355596952,1741356644678,-500.0,0.00032877,2]
[355596953,1741356644690,-208.38,0.000329,30]
[355596954,1741356644704,-244.93,0.000329,30]
[355596955,1741356644717,-500.0,0.0003291,6]
[355596956,1741356644730,-500.0,0.0003291,6]
[355596957,1741356644744,-160.0,0.00032923,3]
[355596958,1741356644757,-168.0,0.00033,2]
[355596959,1741356644770,-168.0,0.00033,2]
[355596960,1741356644784,-500.0,0.00033047,6]
[355596961,1741356644797,-500.0,0.00033047,6]
[355596962,1741356644810,-2833.0,0.00033095,2]
[355596963,1741356644823,-188.15,0.00033139,2]
[355596964,1741356644837,-188.15,0.00033139,2]
[355596965,1741356644848,-188.15,0.00033139,2]
[355596966,1741356644860,-188.15,0.00033139,2]
[355596967,1741356644871,-500.0,0.00033184,6]
[355596968,1741356644884,-500.0,0.00033184,6]
[355596969,1741356644896,-500.0,0.00033321,6]
[355596970,1741356644909,-500.0,0.00033321,6]
[355596971,1741356644921,-500.0,0.00033458,6]
[355596972,1741356644933,-500.0,0.00033458,6]
[355596973,1741356644945,-1500.0,0.00033471,5]
[355596974,1741356644957,-244.93,0.000335,30]
[355596975,1741356644970,-500.0,0.00033595,6]
[355596976,1741356644982,-237.0,0.00033595,6]
[355596977,1741356644993,-500.0,0.00033595,6]
[355596978,1741356645005,-208.38,0.000336,30]
[355596979,1741356645016,-160.0,0.00033608,4]
[355596980,1741356645028,-1500.0,0.00033671,5]
[355596981,1741356645043,-1500.0,0.00033671,5]
[355596982,1741356645054,-451.13865416,0.00033671,5]
[355596983,1741356645065,-1023.82341145,0.00033671,2]
[355596984,1741356645077,-1500.0,0.00033671,5]
[355596985,1741356645088,-1248.56447497,0.00033671,5]
[355596986,1741356645100,-1508.50935505,0.00033671,5]
[355596987,1741356645111,-1500.0,0.00033671,5]
[355596988,1741356645122,-1500.0,0.00033671,2]
[355596989,1741356645134,-1500.0,0.00033671,5]
[355596990,1741356645146,-1500.0,0.00033671,5]
[355596991,1741356645157,-500.0,0.00033732,6]
[355596992,1741356645169,-500.0,0.00033868,6]
[355596993,1741356645181,-2251.72,0.000339,2]
[355596994,1741356645197,-21029.86727547,0.00034,2]
[355596995,1741356645210,-64646.4,0.00034,2]
[355596996,1741356645223,-37356.142399,0.00034,2]
[355596997,1741356645235,-500.0,0.00034005,6]
[355596998,1741356645247,-561.0,0.00034111,2]
[355596999,1741356645259,-500.0,0.00034142,6]
[355597000,1741356645271,-244.93,0.000342,30]
[355597001,1741356645283,-405.35,0.00034246,2]
[355597002,1741356645294,-500.0,0.00034247,2]
[355597003,1741356645307,-500.0,0.00034279,6]
[355597004,1741356645319,-160.0,0.00034293,5]
[355597005,1741356645331,-494.726121,0.000343,17]
[355597006,1741356645342,-561.0,0.00034398,2]
[355597007,1741356645353,-156.857475,0.000344,35]
[355597008,1741356645365,-500.0,0.00034416,6]
[355597009,1741356645377,-208.38,0.000345,30]
[355597010,1741356645389,-500.0,0.00034553,6]
[355597011,1741356645400,-1500.0,0.00034671,5]
[355597012,1741356645412,-1500.0,0.00034671,5]
[355597013,1741356645424,-1551.61881805,0.00034671,5]
[355597014,1741356645435,-1500.0,0.00034671,5]
[355597015,1741356645446,-1500.0,0.00034671,5]
[355597016,1741356645458,-1500.0,0.00034671,5]
[355597017,1741356645470,-1116.5543764,0.00034671,5]
[355597018,1741356645482,-504.28254606,0.00034671,5]
[355597019,1741356645494,-500.0,0.0003469,6]
[355597020,1741356645507,-500.0,0.00034827,6]
[355597021,1741356645519,-244.93,0.000349,30]
[355597022,1741356645531,-500.0,0.00034964,6]
[355597023,1741356645543,-160.0,0.00034978,6]
[355597024,1741356645554,-20000.0,0.00035,2]
[355597025,1741356645565,-2621.0,0.00035,5]
[355597026,1741356645576,-2601.4023247,0.00035,21]
[355597027,1741356645587,-21909.4321669,0.00035,2]
[355597028,1741356645599,-150.0,0.00035,69]
[355597029,1741356645611,-2000.0,0.00035,15]
[355597030,1741356645622,-1000.0,0.00035,30]
[355597031,1741356645633,-1000.0,0.00035,30]
[355597032,1741356645644,-1000.0,0.00035,30]
[355597033,1741356645655,-1000.0,0.00035,30]
[355597034,1741356645666,-2000.0,0.00035,15]
[355597035,1741356645677,-416.66666667,0.00035,30]
[355597036,1741356645688,-1013.49590167,0.00035,2]
[355597037,1741356645700,-2725.0,0.00035,30]
[355597038,1741356645711,-500.0,0.00035101,6]
[355597039,1741356645723,-208.38,0.000352,30]
[355597040,1741356645733,-500.0,0.00035238,6]
[355597041,1741356645745,-500.0,0.00035375,6]
[355597042,1741356645757,-244.93,0.000355,30]
[355597043,1741356645768,-500.0,0.00035512,6]
[355597044,1741356645780,-2000.0,0.000356,15]
[355597045,1741356645791,-405.35,0.00035616,2]
[355597046,1741356645803,-150.0,0.00035616,5]
[355597047,1741356645814,-216.07319649,0.00035616,7]
[355597048,1741356645825,-10000.0,0.00035616,14]
[355597049,1741356645837,-10000.0,0.00035616,14]
[355597050,1741356645848,-10000.0,0.00035616,14]
[355597051,1741356645859,-10000.0,0.00035616,14]
[355597052,1741356645869,-10000.0,0.00035616,14]
[355597053,1741356645880,-10000.0,0.00035616,14]
[355597054,1741356645891,-10000.0,0.00035616,14]
[355597055,1741356645902,-10000.0,0.00035616,14]
[355597056,1741356645912,-10000.0,0.00035616,14]
[355597057,1741356645923,-10000.0,0.00035616,14]
[355597058,1741356645934,-10000.0,0.00035616,14]
[355597059,1741356645944,-10000.0,0.00035616,14]
[355597060,1741356645955,-10000.0,0.00035616,14]
[355597061,1741356645966,-10000.0,0.00035616,14]
[355597062,1741356645977,-10000.0,0.00035616,14]
[355597063,1741356645987,-10000.0,0.00035616,14]
[355597064,1741356645999,-10000.0,0.00035616,14]
[355597066,1741356646009,-10000.0,0.00035616,14]
[355597068,1741356646020,-10000.0,0.00035616,14]
[355597069,1741356646030,-10000.0,0.00035616,14]
[355597070,1741356646041,-4995.406007,0.00035616,14]
[355597071,1741356646052,-1000.0,0.00035616,2]
[355597072,1741356646065,-500.0,0.00035617,2]
[355597073,1741356646077,-500.0,0.00035649,6]
[355597074,1741356646089,-160.0,0.00035663,7]
[355597075,1741356646099,-500.0,0.00035786,6]
[355597076,1741356646110,-500.0,0.0003589,2]
[355597077,1741356646120,-208.38,0.000359,30]
[355597078,1741356646130,-500.0,0.00035923,6]
[355597079,1741356646141,-1293.0,0.00036,30]
[355597080,1741356646151,-1000.0,0.00036,3]
[355597084,1741356646410,-7032.48288371,0.00036,2]
[355597085,1741356646428,-1000.0,0.00036,30]
[355597086,1741356646461,-168.0,0.00036,2]
[355597087,1741356646472,-168.0,0.00036,2]
[355597088,1741356646482,-500.0,0.0003606,6]
[355597089,1741356646491,-561.0,0.00036118,2]
[355597090,1741356646502,-250.0,0.00036164,5]
[355597091,1741356646512,-500.0,0.00036197,6]
[355597092,1741356646522,-500.0,0.000362,10]
[355597093,1741356646532,-200.81731094,0.0003621,2]
[355597094,1741356646542,-261.204463,0.0003624,2]
[355597095,1741356646552,-500.0,0.00036334,6]
[355597096,1741356646562,-160.0,0.00036348,8]
[355597097,1741356646571,-500.0,0.00036471,6]
[355597098,1741356646581,-22252.89129224,0.0003658,10]
[355597099,1741356646591,-2000.0,0.000366,18]
[355597100,1741356646601,-500.0,0.00036608,6]
[355597101,1741356646611,-350.0,0.00036712,5]
[355597102,1741356646621,-500.0,0.00036745,6]
[355597103,1741356646630,-500.0,0.00036882,6]
[355597104,1741356646640,-405.35,0.00036986,2]
[355597105,1741356646650,-500.0,0.00036987,2]
[355597106,1741356646661,-1000.0,0.00037,3]
[355597107,1741356646672,-26466.91927569,0.00037,5]
[355597108,1741356646682,-50109.47709741,0.00037,2]
[355597109,1741356646692,-244.93,0.00037,30]
[355597110,1741356646702,-500.0,0.00037019,6]
[355597111,1741356646712,-160.0,0.00037033,9]
[355597112,1741356646722,-500.0,0.00037156,6]
[355597113,1741356646732,-450.0,0.0003726,5]
[355597114,1741356646742,-500.0,0.00037293,6]
[355597115,1741356646755,-10000.0,0.00037354,2]
[355597116,1741356646765,-500.0,0.0003743,6]
[355597117,1741356646774,-1000.0,0.000375,3]
[355597118,1741356646784,-150.0,0.000375,112]
[355597119,1741356646795,-156.857475,0.000375,30]
[355597120,1741356646805,-500.0,0.00037567,6]
[355597121,1741356646814,-865.699999,0.000376,20]
[355597122,1741356646824,-500.0,0.00037704,6]
[355597123,1741356646834,-160.0,0.00037718,10]
[355597124,1741356646844,-204.9928989,0.0003772,18]
[355597125,1741356646855,-471.55,0.000378,31]
[355597126,1741356646865,-471.55,0.000378,31]
[355597127,1741356646874,-471.55,0.000378,31]
[355597128,1741356646884,-471.55,0.000378,31]
[355597129,1741356646895,-471.55,0.000378,31]
[355597130,1741356646905,-471.55,0.000378,31]
[355597131,1741356646914,-471.55,0.000378,31]
[355597132,1741356646924,-471.55,0.000378,31]
[355597133,1741356646934,-471.55,0.000378,31]
[355597134,1741356646944,-471.55,0.000378,31]
[355597135,1741356646954,-471.55,0.000378,31]
[355597136,1741356646963,-471.55,0.000378,31]
[355597137,1741356646973,-550.0,0.00037808,5]
[355597138,1741356646982,-500.0,0.00037841,6]
[355597139,1741356646992,-500.0,0.00037978,6]
[355597140,1741356647003,-805.0,0.00038,2]
[355597141,1741356647013,-250.02675173,0.00038,2]
[355597142,1741356647023,-400.0,0.00038,5]
[355597143,1741356647032,-200.74756848,0.00038,2]
[355597144,1741356647042,-6894.92379,0.00038,120]
[355597145,1741356647051,-500.0,0.00038115,6]
[355597146,1741356647062,-500.0,0.00038252,6]
[355597147,1741356647072,-1080.0,0.00038355,2]
[355597148,1741356647082,-500.0,0.00038356,30]
[355597149,1741356647092,-500.0,0.00038356,30]
[355597150,1741356647102,-500.0,0.00038356,30]
[355597151,1741356647112,-664.85,0.00038356,30]
[355597152,1741356647122,-305.77438302,0.00038356,30]
[355597153,1741356647132,-500.0,0.00038356,30]
[355597154,1741356647142,-210.000867,0.00038356,30]
[355597155,1741356647152,-405.35,0.00038356,2]
[355597156,1741356647161,-500.0,0.00038356,30]
[355597157,1741356647171,-577.0,0.00038356,30]
[355597158,1741356647180,-500.0,0.00038356,30]
[355597159,1741356647190,-500.0,0.00038356,30]
[355597160,1741356647199,-713.9,0.00038356,30]
[355597161,1741356647209,-500.0,0.00038356,30]
[355597162,1741356647218,-500.0,0.00038356,30]
[355597163,1741356647228,-500.0,0.00038356,30]
[355597164,1741356647238,-500.0,0.00038356,30]
[355597165,1741356647248,-500.0,0.00038356,30]
[355597166,1741356647259,-500.0,0.00038356,30]
[355597167,1741356647268,-511.14,0.00038356,30]
[355597168,1741356647277,-1019.33,0.00038356,30]
[355597169,1741356647287,-506.45417914,0.00038356,30]
[355597170,1741356647296,-500.0,0.00038356,30]
[355597171,1741356647306,-518.72016922,0.00038356,30]
[355597172,1741356647316,-747.73,0.00038356,30]
[355597173,1741356647326,-500.0,0.00038356,2]
[355597174,1741356647336,-500.0,0.00038356,30]
[355597175,1741356647345,-500.0,0.00038356,30]
[355597176,1741356647355,-500.0,0.00038356,30]
[355597177,1741356647364,-500.0,0.00038356,30]
[355597178,1741356647374,-500.0,0.00038356,30]
[355597179,1741356647384,-500.0,0.00038356,30]
[355597180,1741356647393,-500.0,0.00038356,30]
[355597181,1741356647403,-500.0,0.00038356,30]
[355597182,1741356647412,-512.17,0.00038356,30]
[355597183,1741356647422,-500.0,0.00038356,30]
[355597184,1741356647431,-500.0,0.00038356,30]
[355597185,1741356647441,-500.0,0.00038356,30]
[355597186,1741356647450,-602.65,0.00038356,30]
[355597187,1741356647460,-500.0,0.00038356,30]
[355597188,1741356647470,-500.0,0.00038356,30]
[355597189,1741356647479,-256.13985947,0.00038356,30]
[355597190,1741356647489,-500.0,0.00038356,30]
[355597191,1741356647498,-500.0,0.00038356,30]
[355597192,1741356647508,-712.98,0.00038356,30]
[355597193,1741356647517,-500.0,0.00038356,30]
[355597194,1741356647527,-500.0,0.00038356,30]
[355597195,1741356647536,-631.88930015,0.00038356,30]
[355597196,1741356647545,-500.0,0.00038356,30]
[355597197,1741356647555,-200.77431269,0.00038356,30]
[355597198,1741356647565,-500.0,0.00038356,30]
[355597199,1741356647575,-500.0,0.00038356,30]
[355597200,1741356647584,-500.0,0.00038356,30]
[355597201,1741356647594,-500.0,0.00038356,30]
[355597202,1741356647603,-500.0,0.00038356,30]
[355597203,1741356647614,-500.0,0.00038356,30]
[355597204,1741356647623,-500.0,0.00038356,3]
[355597205,1741356647633,-500.0,0.00038356,30]
[355597206,1741356647643,-1165.07,0.00038356,30]
[355597207,1741356647652,-1041.2,0.00038356,30]
[355597208,1741356647661,-500.0,0.00038356,30]
[355597209,1741356647671,-1106.08,0.00038356,30]
[355597210,1741356647680,-500.0,0.00038356,30]
[355597211,1741356647689,-500.0,0.00038356,30]
[355597212,1741356647699,-832.8,0.00038356,30]
[355597213,1741356647709,-500.0,0.00038356,30]
[355597214,1741356647718,-500.0,0.00038356,30]
[355597215,1741356647728,-500.0,0.00038356,30]
[355597216,1741356647737,-500.0,0.00038356,2]
[355597217,1741356647748,-500.0,0.00038356,30]
[355597218,1741356647761,-500.0,0.00038356,30]
[355597219,1741356647770,-794.35,0.00038356,30]
[355597220,1741356647780,-508.75,0.00038356,30]
[355597221,1741356647790,-500.0,0.00038356,30]
[355597222,1741356647801,-773.88,0.00038356,30]
[355597223,1741356647810,-571.98,0.00038356,30]
[355597224,1741356647820,-606.13,0.00038356,30]
[355597225,1741356647831,-500.0,0.00038356,30]
[355597226,1741356647840,-513.99,0.00038356,30]
[355597227,1741356647850,-1190.57,0.00038356,30]
[355597228,1741356647859,-1000.0,0.00038356,7]
[355597229,1741356647869,-773.31,0.00038356,30]
[355597230,1741356647879,-500.0,0.00038356,30]
[355597231,1741356647890,-500.0,0.00038356,30]